bitfinex/quotes_SOLUSD_20241105
["timestamp","ask_amount","ask_price","bid_price","bid_amount"]
[1730818597362,36.05806714,166.61,166.57,21.0121]
[1730818597661,36.05806714,166.63,166.58,0.12549]
[1730818597869,36.05806714,166.65,166.6,0.12549]
[1730818598096,20.0,166.7,166.58,0.248808]
[1730818598097,36.05806714,166.64,166.58,36.18138514]
[1730818598363,36.05806714,166.65,166.59,36.05806714]
[1730818598568,36.05806714,166.66,166.61,0.12549]
[1730818598767,5.9991,166.69,166.58,0.123318]
[1730818598966,36.05806714,166.64,166.58,36.18138514]
[1730818599273,36.05806714,166.66,166.61,0.12549]
[1730818599479,36.05806714,166.65,166.61,23.902374]
[1730818600166,36.05806714,166.64,166.61,23.902374]
[1730818600378,36.05806714,166.65,166.61,23.902374]
[1730818600784,20.0,166.7,166.61,23.902374]
[1730818600785,36.05806714,166.66,166.62,0.12549]
[1730818600988,20.0,166.7,166.62,0.25098]
[1730818600989,36.05806714,166.65,166.62,0.25098]
[1730818601190,36.05806714,166.63,166.61,23.776884]
[1730818601384,20.0,166.7,166.59,6.0027]
[1730818601385,36.05806714,166.64,166.59,6.0027]
[1730818601569,25.9984,166.71,166.59,21.0096]
[1730818601771,25.9984,166.71,166.6,0.12549]
[1730818602492,5.9984,166.71,166.6,24.153354]
[1730818602668,36.05806714,166.67,166.6,60.21142114]
[1730818602866,5.9984,166.71,166.6,60.21142114]
[1730818602867,36.05806714,166.66,166.6,60.21142114]
[1730818603124,30.8456,166.77,166.62,0.12549]
[1730818603268,30.8456,166.77,166.67,0.25098]
[1730818603269,36.05806714,166.71,166.67,0.25098]
[1730818603471,36.05806714,166.73,166.69,0.12549]
[1730818603669,36.05806714,166.73,166.69,0.25098]
[1730818604091,51.04606714,166.8,166.69,0.25098]
[1730818604092,36.05806714,166.74,166.69,0.25098]
[1730818604307,36.05806714,166.75,166.69,36.30904714]
[1730818604598,36.05806714,166.8,166.72,0.12549]
[1730818604599,36.05806714,166.77,166.72,0.12549]
[1730818604771,36.05806714,166.77,166.73,0.25098]
[1730818605166,36.05806714,166.76,166.73,0.25098]
[1730818605394,36.05806714,166.76,166.75,23.776884]
[1730818605695,36.05806714,166.78,166.75,23.776884]
[1730818605991,5.9944,166.82,166.75,23.776884]
[1730818605992,36.05806714,166.76,166.75,23.776884]
[1730818606169,36.05806714,166.77,166.75,23.776884]
[1730818606370,36.05806714,166.76,166.75,23.776884]
[1730818606990,36.05806714,166.79,166.76,0.37647]
[1730818607398,42.18076714,166.88,166.78,0.12549]
[1730818607399,36.05806714,166.82,166.78,0.12549]
[1730818607597,36.05806714,166.82,166.78,0.25098]
[1730818608117,36.05806714,166.84,166.78,36.30904714]
[1730818608270,36.05806714,166.82,166.79,23.776884]
[1730818608471,36.05806714,166.83,166.8,0.25098]
[1730818608685,36.05806714,166.84,166.8,0.25098]
[1730818609105,36.05806714,166.85,166.8,0.25098]
[1730818609395,36.05806714,166.86,166.83,23.776884]
[1730818609595,36.05806714,166.87,166.83,23.776884]
[1730818609770,36.05806714,166.89,166.84,0.25098]
[1730818609972,36.05806714,166.9,166.84,0.25098]
[1730818610298,5.9901,166.94,166.86,0.25098]
[1730818610299,36.05806714,166.89,166.86,0.25098]
[1730818610594,36.05806714,166.88,166.86,0.25098]
[1730818610975,36.05806714,166.89,166.86,21.22628]
[1730818611175,36.05806714,166.89,166.87,23.776884]
[1730818611569,36.05806714,166.91,166.87,23.776884]
[1730818611770,36.05806714,166.88,166.87,23.776884]
[1730818612598,36.05806714,166.9,166.87,44.751184]
[1730818612910,0.3671184,166.95,166.9,24.153354]
[1730818613195,6.3569184,166.95,166.92,23.776884]
[1730818613500,0.3671184,166.95,166.92,23.776884]
[1730818614407,36.05806714,166.93,166.92,23.776884]
[1730818615299,36.05806714,166.94,166.92,44.744884]
[1730818615506,0.3671184,166.95,166.93,0.25098]
[1730818615687,36.05806714,166.94,166.92,44.744884]
[1730818616011,0.3671184,166.95,166.92,23.776884]
[1730818616203,6.3570184,166.95,166.9,23.776884]
[1730818616406,36.05806714,166.91,166.9,23.776884]
[1730818617218,36.05806714,166.91,166.9,29.768484]
[1730818617519,36.05806714,166.92,166.9,29.768484]
[1730818617696,36.05806714,166.94,166.91,0.25098]
[1730818618014,0.3671184,166.95,166.94,30.427254]
[1730818618181,0.3671184,166.95,166.94,66.48532114]
[1730818618693,0.3671184,166.95,166.94,67.68276676]
[1730818618892,0.3671184,166.95,166.94,66.48532114]
[1730818619109,0.3671184,166.95,166.94,36.417354]
[1730818619285,0.3671184,166.95,166.94,36.040884]
[1730818619484,0.3671184,166.95,166.94,36.166374]
[1730818619710,0.3671184,166.95,166.94,36.417354]
[1730818620124,0.3671184,166.95,166.94,23.776884]
[1730818620288,0.3671184,166.95,166.94,29.766984]
[1730818620784,0.3671184,166.95,166.94,66.20152114]
[1730818620990,0.3671184,166.95,166.94,30.017964]
[1730818621290,0.3671184,166.95,166.94,66.07603114]
[1730818621486,0.3671184,166.95,166.94,67.39894959]
[1730818622103,0.3671184,166.95,166.94,66.20152114]
[1730818623510,0.3671184,166.95,166.94,52.19806599]
[1730818623716,0.4904364,167.09,166.95,0.12549]
[1730818623891,0.4904364,167.09,167.06,0.12549]
[1730818624086,0.4904364,167.09,167.05,23.902374]
[1730818624501,22.05461199,167.07,167.05,23.776884]
[1730818625019,22.05461199,167.06,167.05,23.776884]
[1730818625395,22.05461199,167.07,167.05,23.776884]
[1730818625603,22.05461199,167.08,167.05,29.762984]
[1730818625816,0.4904364,167.09,167.06,0.12549]
[1730818626122,0.4904364,167.09,167.08,0.12549]
[1730818626309,0.4904364,167.09,167.08,0.25098]
[1730818627192,22.05461199,167.15,167.09,23.902374]
[1730818627401,22.05461199,167.16,167.1,0.12549]
[1730818627608,35.76921304,167.17,167.13,0.12549]
[1730818627815,35.76921304,167.19,167.13,0.25098]
[1730818628000,35.76921304,167.17,167.13,0.12549]
[1730818628204,35.76921304,167.19,167.13,0.12549]
[1730818628412,35.76921304,167.19,167.13,36.02019304]
[1730818628611,35.76921304,167.2,167.13,36.02019304]
[1730818628918,35.76921304,167.2,167.15,0.25098]
[1730818629123,35.76921304,167.21,167.15,0.25098]
[1730818629331,0.4904364,167.22,167.17,59.92256704]
[1730818629495,36.25964944,167.22,167.17,24.153354]
[1730818629696,0.4904364,167.22,167.17,59.67158704]
[1730818629917,35.76921304,167.2,167.17,23.902374]
[1730818630122,35.76921304,167.21,167.16,23.776884]
[1730818630426,35.76921304,167.21,167.17,0.12549]
[1730818630811,35.76921304,167.2,167.17,0.12549]
[1730818631118,35.76921304,167.21,167.17,6.10709]
[1730818631323,35.76921304,167.21,167.18,23.776884]
[1730818632726,35.76921304,167.19,167.18,23.776884]
[1730818633410,20.0,167.18,167.1,10.41011334]
[1730818633599,35.76921304,167.11,167.02,35.76921304]
[1730818633926,35.76921304,167.06,167.03,20.9539]
[1730818634096,35.76921304,167.07,167.03,20.9539]
[1730818634301,35.76921304,167.06,167.04,0.12549]
[1730818634513,35.76921304,167.06,167.0,62.74845998]
[1730818634514,35.76921304,167.05,167.01,5.9876]
[1730818634911,35.76921304,167.06,167.01,20.9567]
[1730818635120,35.76921304,167.05,167.02,0.12549]
[1730818635304,20.0,167.16,167.04,35.76921304]
[1730818635631,35.76921304,167.13,167.08,0.12549]
[1730818635835,35.76921304,167.13,167.08,0.25098]
[1730818636201,35.76921304,167.12,167.08,0.12549]
[1730818636536,35.76921304,167.12,167.07,24.153354]
[1730818636716,35.76921304,167.13,167.07,65.90786704]
[1730818637023,35.76921304,167.13,167.07,30.138654]
[1730818637234,35.76921304,167.13,167.07,23.20316219]
[1730818637517,5.9833,167.14,167.04,35.76921304]
[1730818637518,35.76921304,167.1,167.04,35.76921304]
[1730818637712,5.9833,167.14,167.03,14.9668]
[1730818637713,35.76921304,167.11,167.05,35.76921304]
[1730818637910,35.76921304,167.11,167.04,35.76921304]
[1730818638316,35.76921304,167.12,167.05,35.76921304]
[1730818638703,35.76921304,167.13,167.07,56.71841304]
[1730818638908,35.76921304,167.14,167.07,56.71841304]
[1730818639224,35.76921304,167.1,167.08,23.776884]
[1730818639427,0.1,167.18,167.07,23.776884]
[1730818639725,0.1,167.16,167.07,23.776884]
[1730818640105,0.1,167.16,167.06,20.9504]
[1730818640106,0.1,167.16,167.06,14.9646]
[1730818640403,40.9342,167.19,167.0,16.5629]
[1730818640404,0.1,167.15,167.02,14.9675]
[1730818640718,35.76921304,167.05,167.02,14.9675]
[1730818640920,35.76921304,167.07,167.03,0.12549]
[1730818641227,35.76921304,167.1,167.03,35.89470304]
[1730818641614,35.76921304,167.08,167.03,0.12549]
[1730818641800,35.76921304,167.09,167.03,35.89470304]
[1730818642130,35.76921304,167.09,167.03,35.76921304]
[1730818642500,35.76921304,167.09,167.04,0.12549]
[1730818642814,35.76921304,167.1,167.05,20.9517]
[1730818643203,35.76921304,167.12,167.06,24.153354]
[1730818643437,35.76921304,167.13,167.06,59.92256704]
[1730818643732,35.76921304,167.14,167.08,59.79707704]
[1730818643919,35.76921304,167.14,167.1,23.776884]
[1730818644103,5.9819,167.17,167.05,20.9517]
[1730818644309,35.76921304,167.09,167.06,23.776884]
[1730818644527,35.76921304,167.08,167.06,23.776884]
[1730818644703,35.76921304,167.1,167.06,23.776884]
[1730818644911,35.76921304,167.1,167.08,23.776884]
[1730818645337,35.76921304,167.09,167.08,23.776884]
[1730818645507,35.76921304,167.09,167.05,20.9515]
[1730818645826,35.76921304,167.1,167.06,23.776884]
[1730818646031,35.76921304,167.09,167.06,23.776884]
[1730818646236,35.76921304,167.1,167.06,23.776884]
[1730818646402,35.76921304,167.09,167.06,23.776884]
[1730818646602,35.76921304,167.1,167.06,23.776884]
[1730818646802,35.76921304,167.1,167.06,29.762484]
[1730818647002,14.9557,167.16,167.06,29.762484]
[1730818647003,35.76921304,167.09,167.06,29.762484]
[1730818647207,35.76921304,167.09,167.06,5.9856]
[1730818648050,35.76921304,167.1,167.06,20.9502]
[1730818648541,41.75181304,167.15,167.08,35.76921304]
[1730818648837,35.76921304,167.14,167.08,35.76921304]
[1730818649009,41.75181304,167.15,167.09,56.71581304]
[1730818649210,35.76921304,167.13,167.09,20.9466]
[1730818649538,35.76921304,167.1,166.99,6.4817]
[1730818649704,35.76921304,167.04,166.96,20.963]
[1730818650033,22.05464311,167.07,166.96,21.063]
[1730818650233,15.8801,167.11,167.02,22.05464311]
[1730818650436,22.05464311,167.07,167.01,22.05464311]
[1730818650609,22.05464311,167.09,167.02,22.05464311]
[1730818650815,22.05464311,167.09,166.98,0.1]
[1730818650816,22.05464311,167.1,167.04,22.05464311]
[1730818651009,22.05464311,167.08,167.03,5.9869]
[1730818651549,28.03954311,167.09,167.03,43.00884311]
[1730818651735,22.05464311,167.06,167.02,23.776884]
[1730818652041,22.05464311,167.08,167.02,45.83152711]
[1730818652216,22.05464311,167.06,167.02,23.776884]
[1730818652421,22.05464311,167.04,166.98,14.9717]
[1730818652627,22.05464311,167.03,166.98,14.9717]
[1730818653035,22.05464311,167.01,166.95,37.02914311]
[1730818653223,22.05464311,167.03,166.96,22.05464311]
[1730818653425,22.05464311,167.01,166.95,22.05464311]
[1730818653743,14.9647,167.06,166.93,5.9904]
[1730818653744,22.05464311,166.98,166.93,5.9904]
[1730818653915,22.05464311,166.98,166.91,22.05464311]
[1730818654113,22.05464311,166.95,166.9,20.9706]
[1730818654631,22.05464311,166.95,166.9,14.979]
[1730818654829,22.05464311,166.95,166.9,20.9706]
[1730818655135,22.05464311,166.93,166.87,22.05464311]
[1730818655339,22.05464311,166.95,166.88,22.05464311]
[1730818655547,22.05464311,166.99,166.87,6.15159]
[1730818655713,20.0,166.99,166.87,12.34162215]
[1730818656037,20.0,166.99,166.87,6.15159]
[1730818656244,20.0,167.0,166.87,6.15159]
[1730818656616,20.0,167.0,166.89,0.12549]
[1730818657022,22.05464311,166.97,166.91,22.05464311]
[1730818657338,22.05464311,166.97,166.92,23.776884]
[1730818657642,76.17574751,167.07,166.92,23.776884]
[1730818657643,3.08787375,167.07,166.98,0.25098]
[1730818657819,22.05464311,167.06,167.0,22.05464311]
[1730818658235,12.3012,167.09,166.98,0.25098]
[1730818658740,22.05464311,167.08,167.01,22.05464311]
[1730818659040,12.3012,167.09,166.98,0.25098]
[1730818659041,22.05464311,167.06,167.0,22.05464311]
[1730818659223,22.05464311,167.08,167.01,22.05464311]
[1730818659539,28.03944311,167.09,167.02,22.05464311]
[1730818659728,28.03944311,167.09,167.03,22.05464311]
[1730818659932,22.05464311,167.08,167.01,22.05464311]
[1730818660419,22.05464311,167.08,167.02,23.776884]
[1730818660612,22.05464311,167.06,167.0,37.02454311]
[1730818660814,22.05464311,167.06,167.0,14.9699]
[1730818661035,43.19764311,167.12,166.97,22.05464311]
[1730818661036,22.05464311,167.03,166.97,22.05464311]
[1730818661239,112.99764311,167.12,166.9,13.56982601]
[1730818661240,22.05464311,167.01,166.94,22.05464311]
[1730818661445,22.05464311,167.01,166.95,22.05464311]
[1730818661619,20.25098,167.05,166.9,13.56982601]
[1730818661939,35.85129643,167.01,166.95,35.85129643]
[1730818662319,35.85129643,167.02,166.95,35.85129643]
[1730818662814,35.85129643,167.02,166.93,14.9754]
[1730818662815,35.85129643,167.02,166.96,35.85129643]
[1730818663422,35.85129643,167.01,166.96,5.9893]
[1730818664243,35.85129643,167.01,166.95,35.85129643]
[1730818664411,35.85129643,167.01,166.95,20.9643]
[1730818664829,41.83899643,167.01,166.95,20.9643]
[1730818665024,41.83899643,167.01,166.95,56.81559643]
[1730818665519,5.9877,167.01,166.95,56.81559643]
[1730818665717,35.85129643,167.03,166.96,35.85129643]
[1730818665936,35.85129643,167.03,166.97,35.85129643]
[1730818666225,35.85129643,167.03,166.97,23.776884]
[1730818666530,41.83779643,167.04,166.98,35.85129643]
[1730818666727,41.83779643,167.04,166.97,23.776884]
[1730818666940,41.83779643,167.04,166.97,35.85129643]
[1730818667135,35.85129643,167.05,166.93,0.12549]
[1730818667441,20.22549,167.08,166.93,0.12549]
[1730818667638,35.85129643,167.01,166.93,0.12549]
[1730818667838,20.25098,167.03,166.92,20.9674]
[1730818668225,0.25098,167.01,166.9,13.56982601]
[1730818668858,35.85129643,166.97,166.91,35.85129643]
[1730818669154,35.85129643,166.97,166.91,56.82049643]
[1730818669330,35.85129643,166.94,166.88,35.85129643]
[1730818669533,35.85129643,166.94,166.89,5.9919]
[1730818669942,35.85129643,166.94,166.89,20.9718]
[1730818670246,35.85129643,166.94,166.89,14.9799]
[1730818670852,35.85129643,166.94,166.88,35.85129643]
[1730818671039,41.84109643,166.95,166.88,35.85129643]
[1730818672557,55.85129643,166.94,166.88,35.85129643]
[1730818672735,35.85129643,166.93,166.87,41.84389643]
[1730818672929,35.85129643,166.94,166.88,59.62818043]
[1730818673229,20.9592,166.99,166.9,35.85129643]
[1730818673434,20.9592,166.99,166.88,23.776884]
[1730818673435,11.53035585,166.98,166.93,35.85129643]
[1730818673647,41.83959643,166.99,166.93,35.85129643]
[1730818673958,11.53023725,166.98,166.93,35.85129643]
[1730818674146,41.83959643,166.99,166.92,35.85129643]
[1730818674342,40.28606207,166.98,166.92,35.85129643]
[1730818674550,4.43476564,166.97,166.92,35.85129643]
[1730818674761,41.84029643,166.98,166.92,35.85129643]
[1730818674943,5.989,166.98,166.92,41.84189643]
[1730818675465,35.85129643,166.99,166.93,35.85129643]
[1730818675636,4.43658131,166.98,166.93,35.85129643]
[1730818675837,35.85129643,167.0,166.94,35.85129643]
[1730818676034,40.28763737,166.99,166.93,59.62818043]
[1730818676234,40.28763737,166.98,166.92,35.85129643]
[1730818676437,35.85129643,166.98,166.92,35.85129643]
[1730818676760,35.85129643,166.97,166.91,35.85129643]
[1730818677143,35.85129643,166.95,166.9,23.776884]
[1730818677356,35.85129643,166.94,166.89,14.9796]
[1730818677554,35.85129643,166.94,166.88,35.85129643]
[1730818677737,35.85129643,166.95,166.89,35.85129643]
[1730818678257,35.85129643,166.97,166.91,35.85129643]
[1730818678464,35.85129643,166.97,166.82,6.0509]
[1730818678465,35.85129643,166.92,166.84,35.85129643]
[1730818678645,5.9912,166.91,166.82,6.0509]
[1730818678850,35.85129643,166.87,166.81,41.84609643]
[1730818679156,0.25098,166.89,166.8,0.3961274]
[1730818679542,4.43785328,166.88,166.8,0.3961274]
[1730818679735,4.43785328,166.87,166.8,0.3961274]
[1730818679932,4.43785328,166.86,166.8,0.3961274]
[1730818680153,35.85129643,166.86,166.8,0.3961274]
[1730818680439,35.85129643,166.86,166.8,6.3912274]
[1730818680639,5.9931,166.86,166.8,42.24252383]
[1730818680861,41.84439643,166.86,166.8,42.24252383]
[1730818681160,41.84439643,166.86,166.8,36.24742383]
[1730818681662,41.84439643,166.86,166.8,0.3961274]
[1730818681860,41.84439643,166.86,166.8,36.24742383]
[1730818682355,41.84439643,166.86,166.8,60.02430783]
[1730818682668,5.9931,166.86,166.81,35.85129643]
[1730818682850,0.12549,166.89,166.8,0.3961274]
[1730818682851,35.85129643,166.85,166.8,0.3961274]
[1730818683261,33.35129643,166.85,166.8,0.3961274]
[1730818683566,22.10228975,166.86,166.8,22.49841715]
[1730818683762,5.9923,166.88,166.82,22.10228975]
[1730818683763,28.09458975,166.88,166.82,22.10228975]
[1730818684242,5.9923,166.88,166.82,22.10228975]
[1730818684441,28.09458975,166.88,166.82,22.10228975]
[1730818684642,5.9923,166.88,166.82,22.10228975]
[1730818685150,28.09458975,166.88,166.82,22.10228975]
[1730818685549,28.09458975,166.88,166.81,28.09688975]
[1730818685771,28.09458975,166.88,166.82,22.10228975]
[1730818685956,15.1588,166.95,166.83,22.10228975]
[1730818685957,22.10228975,166.89,166.83,22.10228975]
[1730818686165,22.10228975,166.92,166.86,22.10228975]
[1730818686463,4.42393662,166.91,166.86,22.10228975]
[1730818686664,4.42393662,166.9,166.85,22.10228975]
[1730818686965,22.10228975,166.88,166.82,43.08288975]
[1730818687572,22.10228975,166.86,166.8,22.49841715]
[1730818687751,22.10228975,166.86,166.8,43.48141715]
[1730818687953,22.10228975,166.86,166.8,37.48641715]
[1730818688259,22.10228975,166.85,166.8,0.3961274]
[1730818688977,22.10228975,166.84,166.8,0.3961274]
[1730818689146,22.10228975,166.82,166.8,0.3961274]
[1730818689353,22.10228975,166.83,166.8,0.3961274]
[1730818690171,22.10228975,166.81,166.8,0.3961274]
[1730818690379,22.10228975,166.82,166.8,0.3961274]
[1730818690667,42.10228975,166.86,166.8,28.49351715]
[1730818690862,22.10228975,166.84,166.8,21.3792274]
[1730818691472,22.10228975,166.85,166.8,21.3792274]
[1730818691950,22.10228975,166.87,166.81,45.87917375]
[1730818692157,22.10228975,166.86,166.8,21.3792274]
[1730818692667,22.10228975,166.85,166.8,21.3792274]
[1730818693248,22.10228975,166.81,166.8,0.3961274]
[1730818693859,22.10228975,166.81,166.75,5.9966]
[1730818693860,22.10228975,166.81,166.75,14.9925]
[1730818694056,22.10228975,166.81,166.75,37.09478975]
[1730818694257,22.10228975,166.8,166.75,14.9925]
[1730818695689,20.0,166.83,166.78,22.10228975]
[1730818695849,20.0,166.83,166.75,14.9925]
[1730818695850,20.0,166.83,166.77,22.10228975]
[1730818696363,22.10228975,166.84,166.78,22.10228975]
[1730818696571,22.10228975,166.86,166.8,22.10228975]
[1730818696881,22.10228975,166.87,166.82,20.9806]
[1730818697086,22.10228975,166.86,166.82,14.9862]
[1730818697573,22.10228975,166.87,166.82,20.9806]
[1730818697757,22.10228975,166.86,166.82,14.9862]
[1730818697961,22.10228975,166.83,166.74,14.9925]
[1730818698169,22.10228975,166.8,166.74,14.9925]
[1730818698372,22.10228975,166.78,166.74,14.9925]
[1730818698554,22.10228975,166.78,166.69,30.4044777]
[1730818698555,22.10228975,166.76,166.7,22.10228975]
[1730818698858,22.10228975,166.76,166.71,5.998]
[1730818699182,22.10228975,166.76,166.69,30.4044777]
[1730818699183,22.10228975,166.76,166.69,22.51176745]
[1730818699347,22.10228975,166.74,166.69,6.4085777]
[1730818699548,0.1,166.78,166.7,22.10228975]
[1730818699767,22.10228975,166.75,166.69,43.50876745]
[1730818699963,22.10228975,166.75,166.69,21.4064777]
[1730818700172,22.10228975,166.73,166.69,15.4073777]
[1730818700389,6.096,166.78,166.69,0.4094777]
[1730818700390,22.10228975,166.7,166.69,0.4094777]
[1730818701359,35.9893112,166.7,166.69,0.4094777]
[1730818701565,56.2402912,166.7,166.69,0.4094777]
[1730818702079,60.40519087,166.7,166.69,0.4094777]
[1730818702373,70.0,166.78,166.69,0.4094777]
[1730818702374,3.08787375,166.83,166.7,0.12549]
[1730818702676,35.9893112,166.8,166.73,35.9893112]
[1730818702862,0.1,166.8,166.69,21.4064777]
[1730818703055,5.9957,166.79,166.7,35.9893112]
[1730818703257,5.9957,166.79,166.69,15.4073777]
[1730818703258,35.9893112,166.71,166.69,0.4094777]
[1730818703474,35.9893112,166.7,166.69,0.4094777]
[1730818703665,35.9893112,166.71,166.69,0.4094777]
[1730818704382,35.9893112,166.7,166.69,0.4094777]
[1730818705597,35.9893112,166.71,166.69,0.4094777]
[1730818705761,15.1473,166.77,166.69,0.4094777]
[1730818705762,35.9893112,166.72,166.69,0.4094777]
[1730818705964,35.9893112,166.71,166.69,0.4094777]
[1730818706164,35.9893112,166.72,166.69,0.4094777]
[1730818706573,35.9893112,166.7,166.69,0.4094777]
[1730818706795,56.4402912,166.7,166.69,0.4094777]
[1730818707103,56.4402912,166.7,166.59,6.0027]
[1730818707104,20.0,166.69,166.59,6.0027]
[1730818707688,20.0,166.69,166.59,56.9989112]
[1730818707689,35.9893112,166.65,166.59,56.9989112]
[1730818707895,35.9893112,166.66,166.6,35.9893112]
[1730818708068,35.9893112,166.65,166.59,56.9989112]
[1730818708393,35.9893112,166.63,166.59,21.0096]
[1730818708594,0.12549,166.69,166.61,35.9893112]
[1730818708808,0.1,166.74,166.6,0.12549]
[1730818709104,4.40535255,166.73,166.6,0.12549]
[1730818709267,0.1,166.79,166.6,24.353354]
[1730818709467,4.4054261,166.76,166.64,24.027864]
[1730818709680,12.5255,166.8,166.66,24.027864]
[1730818709876,35.9893112,166.76,166.7,35.9893112]
[1730818710075,35.9893112,166.77,166.71,35.9893112]
[1730818710390,35.9893112,166.77,166.66,24.027864]
[1730818710391,35.9893112,166.75,166.68,35.9893112]
[1730818710701,0.1,166.79,166.7,35.9893112]
[1730818710702,35.9893112,166.76,166.7,35.9893112]
[1730818711071,35.9893112,166.76,166.67,20.9995]
[1730818711072,35.9893112,166.73,166.67,56.9888112]
[1730818711272,35.9893112,166.72,166.67,20.9995]
[1730818712171,35.9893112,166.73,166.67,20.9995]
[1730818712484,35.9893112,166.72,166.67,20.9995]
[1730818712684,35.9893112,166.71,166.67,20.9995]
[1730818712865,35.9893112,166.72,166.67,20.9995]
[1730818713071,35.9893112,166.73,166.67,56.9888112]
[1730818713370,36.1148012,166.73,166.67,56.9888112]
[1730818713583,36.1148012,166.73,166.64,30.0046]
[1730818713584,0.45098,166.73,166.64,6.0008]
[1730818713990,35.9893112,166.67,166.64,6.0008]
[1730818714397,35.9893112,166.66,166.6,6.0024]
[1730818714583,35.9893112,166.66,166.6,41.9917112]
[1730818714928,35.9893112,166.65,166.6,21.0084]
[1730818715689,35.9893112,166.66,166.6,56.9977112]
[1730818715891,0.24,166.67,166.62,35.9893112]
[1730818716199,0.24,166.67,166.61,59.7661952]
[1730818716497,0.24,166.67,166.63,21.0046]
[1730818717479,0.24,166.67,166.63,56.9939112]
[1730818718005,0.24,166.67,166.65,35.9893112]
[1730818718297,0.24,166.67,166.64,35.9893112]
[1730818718471,0.24,166.67,166.65,21.0021]
[1730818718981,0.24,166.67,166.65,21.0927757]
[1730818719497,0.24,166.67,166.66,35.9893112]
[1730818720672,0.24,166.67,166.66,41.9895112]
[1730818722087,0.24,166.67,166.66,65.7663952]
[1730818724489,51.4941112,166.83,166.67,30.313954]
[1730818724800,41.9834112,166.83,166.77,35.9893112]
[1730818724980,4.4106306,166.82,166.77,29.0384722]
[1730818725185,4.4106306,166.81,166.77,29.0384722]
[1730818725396,42.4701112,166.85,166.78,35.9893112]
[1730818725588,4.41257708,166.84,166.8,35.9893112]
[1730818725790,4.41257708,166.83,166.79,35.9893112]
[1730818725977,36.0893112,166.86,166.79,35.9893112]
[1730818726182,35.9893112,166.81,166.75,35.9893112]
[1730818726489,35.9893112,166.82,166.76,35.9893112]
[1730818726690,4.41541092,166.81,166.75,35.9893112]
[1730818726889,35.9893112,166.82,166.76,35.9893112]
[1730818727086,0.2,166.84,166.74,14.9934]
[1730818727087,35.9893112,166.81,166.75,35.9893112]
[1730818727503,35.9893112,166.81,166.76,5.9966]
[1730818728601,36.1148012,166.8,166.76,5.9966]
[1730818728807,36.1148012,166.8,166.75,5.9969]
[1730818728976,0.12549,166.79,166.75,5.9969]
[1730818729976,36.1148012,166.8,166.75,5.9969]
[1730818730203,0.12549,166.8,166.75,41.9862112]
[1730818730406,0.25098,166.8,166.75,56.9787112]
[1730818730794,36.2402912,166.8,166.75,20.9894]
[1730818730980,42.2354912,166.8,166.75,20.9894]
[1730818731478,42.2354912,166.8,166.75,14.9925]
[1730818731681,42.2354912,166.8,166.73,5.9976]
[1730818731682,0.12549,166.77,166.73,5.9976]
[1730818731902,0.12549,166.77,166.73,41.9869112]
[1730818732104,0.25098,166.78,166.73,41.9869112]
[1730818732308,0.25098,166.79,166.74,35.9893112]
[1730818732811,41.9842112,166.81,166.75,56.9788112]
[1730818733014,20.0,166.8,166.75,56.9788112]
[1730818733584,41.9833112,166.84,166.78,35.9893112]
[1730818733792,4.43189236,166.83,166.79,35.9893112]
[1730818733980,4.43189236,166.82,166.77,35.9893112]
[1730818734294,35.9893112,166.83,166.76,35.9893112]
[1730818734492,35.9893112,166.83,166.77,35.9893112]
[1730818734698,35.9893112,166.85,166.79,35.9893112]
[1730818734920,60.422707,166.84,166.79,14.9885]
[1730818735085,35.9893112,166.83,166.79,14.9885]
[1730818735505,35.9893112,166.82,166.76,5.9964]
[1730818735711,35.9893112,166.82,166.76,41.9857112]
[1730818736103,35.9893112,166.82,166.76,5.9964]
[1730818736494,35.9893112,166.82,166.76,20.988]
[1730818737411,22.11331417,166.83,166.77,22.11331417]
[1730818737590,20.0,166.82,166.76,43.10131417]
[1730818737785,42.11331417,166.82,166.76,20.988]
[1730818737986,22.11331417,166.83,166.77,22.11331417]
[1730818738293,0.12549,166.83,166.77,22.11331417]
[1730818738611,22.23880417,166.83,166.78,20.9857]
[1730818738908,5.9938,166.84,166.78,20.9857]
[1730818738909,22.11331417,166.84,166.78,20.9857]
[1730818739291,22.11331417,166.83,166.78,20.9857]
[1730818739688,22.11331417,166.82,166.78,20.9857]
[1730818739888,22.11331417,166.83,166.78,20.9857]
[1730818740299,22.11331417,166.84,166.78,20.9857]
[1730818740502,20.0,166.85,166.8,20.9832]
[1730818740700,22.11331417,166.87,166.8,43.09651417]
[1730818740904,24.44665904,166.86,166.8,43.09651417]
[1730818741087,20.0,166.86,166.8,43.09651417]